bitfinex/quotes_SOLUSD_20241231
["timestamp","ask_amount","ask_price","bid_price","bid_amount"]
[1735670873271,12.61144985,195.31,195.24,12.61144985]
[1735670873639,12.61144985,195.3,195.23,12.61144985]
[1735670873842,12.61144985,195.27,195.2,12.61144985]
[1735670874042,14.24184985,195.28,195.21,12.61144985]
[1735670874259,1.6304,195.28,195.22,12.61144985]
[1735670875360,1.6304,195.28,195.24,12.61144985]
[1735670876561,1.6304,195.28,195.25,12.61144985]
[1735670876767,1.6304,195.33,195.27,12.61144985]
[1735670877060,1.6304,195.33,195.29,12.61144985]
[1735670880944,1.6304,195.33,195.3,12.61144985]
[1735670881270,1.6304,195.33,195.29,12.61144985]
[1735670881770,1.6304,195.33,195.28,12.61144985]
[1735670881959,1.6304,195.33,195.27,12.61144985]
[1735670883070,1.6304,195.33,195.28,12.61144985]
[1735670883254,1.6304,195.33,195.29,12.61144985]
[1735670889758,1.6304,195.33,195.27,12.61144985]
[1735670890473,1.6304,195.33,195.27,8.07462019]
[1735670890676,1.6304,195.33,195.28,8.07462019]
[1735670890972,1.6304,195.33,195.29,8.07462019]
[1735670893863,1.5431,195.38,195.32,8.07462019]
[1735670894058,6.3855,195.41,195.36,8.07462019]
[1735670894280,1.5431,195.43,195.37,8.07462019]
[1735670895359,1.5431,195.43,195.36,8.07462019]
[1735670895757,8.07462019,195.42,195.36,8.07462019]
[1735670896380,14.14886964,195.43,195.36,12.60576964]
[1735670897480,12.60576964,195.42,195.35,12.60576964]
[1735670897864,14.14886964,195.43,195.36,12.60576964]
[1735670905687,1.5431,195.43,195.36,12.60576964]
[1735670906287,1.5431,195.43,195.37,12.60576964]
[1735670906487,1.51825451,195.43,195.37,12.60576964]
[1735670906665,1.51825451,195.43,195.36,12.60576964]
[1735670908389,1.51825451,195.43,195.38,12.60576964]
[1735670908685,1.51825451,195.43,195.39,12.60576964]
[1735670909767,1.51825451,195.43,195.38,12.60576964]
[1735670910885,1.51825451,195.43,195.39,12.60576964]
[1735670911785,12.60576964,195.46,195.39,12.60576964]
[1735670914265,1.5241,195.47,195.36,12.7964]
[1735670914496,1.5241,195.47,195.42,12.60576964]
[1735670914699,1.5241,195.51,195.45,12.60576964]
[1735670914888,1.5241,195.51,195.47,12.60576964]
[1735670915491,1.5241,195.51,195.46,12.60576964]
[1735670915872,1.5241,195.51,195.47,12.60576964]
[1735670916074,12.60576964,195.54,195.47,12.60576964]
[1735670916373,14.12986964,195.57,195.51,12.60576964]
[1735670916677,1.5241,195.57,195.51,12.60576964]
[1735670916885,14.12986964,195.57,195.51,12.60576964]
[1735670917078,14.12986964,195.57,195.5,12.60576964]
[1735670917279,9.43215141,195.66,195.54,12.60576964]
[1735670917470,12.60576964,195.61,195.54,12.60576964]
[1735670917674,12.60576964,195.6,195.53,12.60576964]
[1735670918101,12.60576964,195.59,195.52,12.60576964]
[1735670918273,8.05366374,195.59,195.53,8.05366374]
[1735670918775,12.7779,195.65,195.53,8.05366374]
[1735670918776,8.05366374,195.6,195.53,8.05366374]
[1735670919082,8.05366374,195.55,195.49,8.05366374]
[1735670919271,8.05366374,195.56,195.49,8.05366374]
[1735670920475,8.05366374,195.57,195.5,8.05366374]
[1735670920778,8.05366374,195.57,195.45,23.776884]
[1735670920779,8.05366374,195.56,195.49,8.05366374]
[1735670920981,8.05366374,195.57,195.5,8.05366374]
[1735670921291,8.05366374,195.58,195.51,8.05366374]
[1735670921796,1.5241,195.59,195.52,8.05366374]
[1735670922095,8.05366374,195.6,195.53,8.05366374]
[1735670922295,8.05366374,195.6,195.49,1.5748]
[1735670922498,20.0,195.62,195.49,1.5748]
[1735670922499,8.05366374,195.58,195.51,8.05366374]
[1735670922799,8.05366374,195.59,195.52,8.05366374]
[1735670922994,8.05366374,195.6,195.53,8.05366374]
[1735670924174,8.05366374,195.59,195.52,8.05366374]
[1735670924390,8.05366374,195.57,195.5,8.05366374]
[1735670924896,8.05366374,195.57,195.49,20.0]
[1735670925092,8.05366374,195.58,195.51,8.05366374]
[1735670925398,8.05366374,195.59,195.52,8.05366374]
[1735670925698,8.05366374,195.58,195.51,8.05366374]
[1735670927697,8.05366374,195.55,195.48,8.05366374]
[1735670929303,8.05366374,195.5,195.44,8.05366374]
[1735670929506,8.05366374,195.5,195.43,8.05366374]
[1735670930198,8.05366374,195.47,195.32,10.11444336]
[1735670930403,1.5209,195.48,195.32,10.11444336]
[1735670930404,8.05366374,195.46,195.39,8.05366374]
[1735670932288,12.60016643,195.46,195.4,12.60016643]
[1735670933486,1.5209,195.48,195.37,12.60016643]
[1735670933703,12.60016643,195.47,195.4,12.60016643]
[1735670933890,14.12106643,195.48,195.41,12.60016643]
[1735670934085,14.12106643,195.48,195.42,12.60016643]
[1735670934285,14.12106643,195.48,195.41,12.60016643]
[1735670934484,14.12106643,195.48,195.42,12.60016643]
[1735670935790,12.60016643,195.47,195.41,12.60016643]
[1735670936810,12.60016643,195.46,195.39,12.60016643]
[1735670937106,12.60016643,195.47,195.4,12.60016643]
[1735670937806,14.12106643,195.48,195.41,12.60016643]
[1735670939009,12.60016643,195.47,195.4,12.60016643]
[1735670939306,12.60016643,195.46,195.39,12.60016643]
[1735670939698,12.60016643,195.45,195.38,12.60016643]
[1735670940107,12.60016643,195.46,195.36,23.776884]
[1735670940304,12.60016643,195.46,195.39,12.60016643]
[1735670943017,12.60016643,195.45,195.38,12.60016643]
[1735670944001,12.60016643,195.46,195.39,12.60016643]
[1735670946114,12.60016643,195.45,195.38,12.60016643]
[1735670946305,12.60016643,195.44,195.37,12.60016643]
[1735670946825,1.5209,195.48,195.34,12.60016643]
[1735670946826,12.60016643,195.41,195.34,12.60016643]
[1735670947000,12.60016643,195.42,195.36,12.60016643]
[1735670947202,12.60016643,195.43,195.36,12.60016643]
[1735670948506,12.60016643,195.44,195.37,12.60016643]
[1735670950618,12.60016643,195.45,195.38,12.60016643]
[1735670950824,12.60016643,195.46,195.39,12.60016643]
[1735670951120,12.60016643,195.47,195.4,12.60016643]
[1735670951313,1.5209,195.48,195.44,12.60016643]
[1735670951503,106.8636,195.59,195.45,12.60016643]
[1735670951504,12.60016643,195.52,195.45,12.60016643]
[1735670952406,12.60016643,195.5,195.44,12.60016643]
[1735670953205,12.60016643,195.5,195.41,12.793]
[1735670953206,12.60016643,195.5,195.43,12.60016643]
[1735670954316,8.06102137,195.5,195.43,8.06102137]
[1735670954504,8.06102137,195.49,195.42,8.06102137]
[1735670955111,8.06102137,195.5,195.43,8.06102137]
[1735670955417,28.06102137,195.51,195.4,36.570484]
[1735670955603,28.06102137,195.51,195.44,8.06102137]
[1735670956716,21.6442,195.53,195.45,8.06102137]
[1735670956915,8.06102137,195.52,195.45,8.06102137]
[1735670957113,1.6442,195.53,195.48,8.06102137]
[1735670957306,8.06102137,195.56,195.49,8.06102137]
[1735670957507,8.06102137,195.57,195.5,8.06102137]
[1735670958822,21.5046,195.58,195.5,8.06102137]
[1735670959125,8.06102137,195.57,195.5,8.06102137]
[1735670963130,8.06102137,195.57,195.49,8.06102137]
[1735670963317,8.06102137,195.56,195.49,8.06102137]
[1735670963517,21.5046,195.58,195.48,8.06102137]
[1735670963518,8.06102137,195.55,195.48,8.06102137]
[1735670964234,8.06102137,195.55,195.47,23.776884]
[1735670964408,8.06102137,195.55,195.48,8.06102137]
[1735670966030,8.06102137,195.54,195.47,8.06102137]
[1735670966227,8.06102137,195.55,195.48,8.06102137]
[1735670967930,8.06102137,195.56,195.49,8.06102137]
[1735670968934,8.06102137,195.55,195.49,8.06102137]
[1735670969232,8.06102137,195.54,195.47,8.06102137]
[1735670973541,8.06102137,195.55,195.49,8.06102137]
[1735670973827,28.06102137,195.57,195.5,8.06102137]
[1735670975736,20.0,195.57,195.5,8.06102137]
[1735670975937,28.06102137,195.57,195.5,8.06102137]
[1735670976111,8.06102137,195.56,195.49,8.06102137]
[1735670977120,8.06102137,195.54,195.48,8.06102137]
[1735670977437,8.06102137,195.54,195.47,8.06102137]
[1735670979242,8.06102137,195.53,195.47,8.06102137]
[1735670980243,8.06102137,195.55,195.48,8.06102137]
[1735670980537,8.06102137,195.56,195.49,8.06102137]
[1735670983120,8.06102137,195.55,195.48,8.06102137]
[1735670983927,20.0,195.57,195.47,8.06102137]
[1735670984120,8.06102137,195.54,195.47,8.06102137]
[1735670986448,8.06102137,195.53,195.46,31.83790537]
[1735670987744,8.06102137,195.54,195.47,8.06102137]
[1735670989539,8.06102137,195.53,195.46,31.83790537]
[1735670989737,8.06102137,195.54,195.46,31.83790537]
[1735670991144,8.06102137,195.54,195.47,8.06102137]
[1735670994853,8.06102137,195.54,195.46,31.83790537]
[1735670995183,8.06102137,195.48,195.42,19.1498]
[1735670995333,8.06102137,195.47,195.42,19.1498]
[1735670995533,8.06102137,195.46,195.4,1.5078]
[1735670996342,8.06102137,195.47,195.41,23.776884]
[1735670996557,8.06102137,195.45,195.39,12.7946]
[1735670996854,8.06102137,195.45,195.39,23.776884]
[1735670997637,8.06102137,195.45,195.38,8.06102137]
[1735670997838,8.06102137,195.44,195.37,14.41832137]
[1735670998138,8.06102137,195.44,195.38,31.83790537]
[1735670998338,8.06102137,195.45,195.38,31.83790537]
[1735670999457,8.06102137,195.46,195.39,8.06102137]
[1735671000742,1.6005,195.51,195.43,8.06102137]
[1735671000934,9.66152137,195.51,195.44,8.06102137]
[1735671001134,8.06102137,195.51,195.44,8.06102137]
[1735671002357,1.5501,195.56,195.46,8.06102137]
[1735671002558,8.06102137,195.53,195.47,23.776884]
[1735671002760,8.06102137,195.52,195.47,23.776884]
[1735671003444,1.5501,195.56,195.47,8.06102137]
[1735671003445,8.06102137,195.54,195.47,8.06102137]
[1735671003763,8.06102137,195.52,195.46,31.83790537]
[1735671004867,8.06102137,195.53,195.46,31.83790537]
[1735671005051,1.5501,195.56,195.49,31.83790537]
[1735671005253,1.5501,195.61,195.5,8.06102137]
[1735671005449,8.06102137,195.59,195.52,8.06102137]
[1735671005659,8.06102137,195.6,195.54,8.06102137]
[1735671005862,8.06102137,195.61,195.54,8.06102137]
[1735671006054,1.5501,195.65,195.54,8.06102137]
[1735671006247,8.06102137,195.6,195.53,8.06102137]
[1735671006563,8.06102137,195.6,195.54,8.06102137]
[1735671006760,8.06102137,195.62,195.55,8.06102137]
[1735671006964,8.06102137,195.62,195.56,23.776884]
[1735671007464,1.5501,195.71,195.58,31.83790537]
[1735671007669,8.06102137,195.65,195.59,8.06102137]
[1735671007961,8.06102137,195.65,195.58,8.06102137]
[1735671008363,8.06102137,195.64,195.58,23.776884]
[1735671008548,8.06102137,195.62,195.55,20.84512137]
[1735671008746,8.06102137,195.59,195.53,14.38532137]
[1735671009068,8.06102137,195.59,195.54,23.776884]
[1735671009753,8.06102137,195.6,195.54,23.776884]
[1735671009954,8.06102137,195.61,195.54,31.83790537]
[1735671010466,8.06102137,195.62,195.55,8.06102137]
[1735671010663,8.06102137,195.62,195.56,8.06102137]
[1735671011561,8.06102137,195.62,195.55,8.06102137]
[1735671011760,8.06102137,195.62,195.56,23.776884]
[1735671011960,8.06102137,195.62,195.56,8.06102137]
[1735671015254,8.06102137,195.58,195.51,1.5839]
[1735671015465,8.06102137,195.55,195.48,14.10322137]
[1735671015658,8.06102137,195.56,195.5,8.06102137]
[1735671015847,8.06102137,195.57,195.51,23.776884]
[1735671016174,6.4592,195.64,195.51,8.06102137]
[1735671016468,6.4592,195.64,195.49,12.7883]
[1735671016469,8.06102137,195.57,195.5,31.83790537]
[1735671017776,8.06102137,195.56,195.49,12.7883]
[1735671018069,23.776884,195.63,195.46,1.537]
[1735671018070,1.5416,195.58,195.47,8.06102137]
[1735671018249,8.06102137,195.56,195.49,8.06102137]
[1735671018449,8.06102137,195.59,195.52,8.06102137]
[1735671018867,1.5416,195.63,195.46,39.9078]
[1735671018868,8.06102137,195.58,195.51,8.06102137]
[1735671019076,8.06102137,195.57,195.51,8.06102137]
[1735671019452,8.06102137,195.57,195.5,8.06102137]
[1735671019864,8.06102137,195.57,195.49,23.776884]
[1735671019865,8.06102137,195.54,195.46,1.537]
[1735671020057,8.06102137,195.54,195.47,8.06102137]
[1735671020268,8.06102137,195.54,195.48,8.06102137]
[1735671020651,8.06102137,195.55,195.48,8.06102137]
[1735671020852,8.06102137,195.53,195.47,23.776884]
[1735671021567,8.06102137,195.54,195.47,31.83790537]
[1735671021965,8.06102137,195.54,195.46,14.3268]
[1735671021966,8.06102137,195.52,195.46,12.7898]
[1735671022278,8.06102137,195.52,195.45,8.06102137]
[1735671022279,8.06102137,195.51,195.44,14.10322137]
[1735671023068,8.06102137,195.48,195.42,8.06102137]
[1735671023557,8.06102137,195.47,195.41,23.776884]
[1735671024268,12.59903469,195.47,195.41,23.776884]
[1735671024571,12.59903469,195.46,195.4,18.8363]
[1735671024777,12.59903469,195.45,195.4,12.7941]
[1735671025977,12.59903469,195.45,195.38,36.37591869]
[1735671026183,12.59903469,195.45,195.39,12.59903469]
[1735671026369,17.7849,195.55,195.39,12.59903469]
[1735671026370,12.59903469,195.46,195.39,12.59903469]
[1735671026974,12.59903469,195.47,195.4,12.59903469]
[1735671027166,12.59903469,195.48,195.41,12.59903469]
[1735671027576,8.0008,195.56,195.43,12.59903469]
[1735671027765,12.59903469,195.5,195.43,12.59903469]
[1735671027964,12.59903469,195.49,195.42,12.59903469]
[1735671028365,12.59903469,195.5,195.43,12.59903469]
[1735671028761,12.59903469,195.49,195.42,12.59903469]
[1735671029479,12.59903469,195.48,195.42,23.776884]
[1735671029878,12.59903469,195.5,195.43,12.59903469]
[1735671030181,12.59903469,195.51,195.44,12.59903469]
[1735671030394,12.59903469,195.52,195.45,12.59903469]
[1735671030685,12.59903469,195.53,195.46,12.59903469]
[1735671030988,12.59903469,195.52,195.45,12.59903469]
[1735671031382,12.59903469,195.51,195.44,36.37591869]
[1735671034062,12.59903469,195.51,195.44,12.59903469]
[1735671034268,12.59903469,195.5,195.43,12.59903469]
[1735671034658,12.59903469,195.48,195.41,12.59903469]
[1735671034860,12.59903469,195.45,195.38,25.39453469]
[1735671035187,12.59903469,195.46,195.4,12.59903469]
[1735671037183,12.59903469,195.47,195.41,23.776884]
[1735671037383,12.59903469,195.49,195.43,12.59903469]
[1735671037765,12.59903469,195.5,195.43,12.59903469]
[1735671039183,12.59903469,195.49,195.43,12.59903469]
[1735671039389,12.59903469,195.49,195.43,23.776884]
[1735671041895,12.59903469,195.48,195.43,23.776884]
[1735671042592,12.59903469,195.49,195.43,23.776884]
[1735671042893,12.59903469,195.48,195.43,23.776884]
[1735671044069,12.59903469,195.46,195.39,12.59903469]
[1735671044392,8.06508833,195.45,195.38,20.86058833]
[1735671044802,32.26035332,195.5,195.38,20.86058833]
[1735671044803,8.06508833,195.44,195.38,12.7955]
[1735671045094,8.06508833,195.45,195.38,44.63747233]
[1735671045600,8.06508833,195.46,195.39,8.06508833]
[1735671050984,8.06508833,195.45,195.38,44.63747233]
[1735671053291,8.06508833,195.43,195.38,12.7955]
[1735671053496,1.6102,195.48,195.35,14.10728833]
[1735671053497,8.06508833,195.42,195.35,14.10728833]
[1735671053677,8.06508833,195.41,195.35,6.0422]
[1735671054080,8.06508833,195.42,195.35,14.10728833]
[1735671054288,8.2698,195.48,195.36,8.06508833]
[1735671054289,8.06508833,195.43,195.36,8.06508833]
[1735671058590,8.06508833,195.42,195.35,14.10728833]
[1735671058790,8.06508833,195.43,195.37,23.776884]
[1735671059099,8.06508833,195.45,195.38,8.06508833]
[1735671059480,8.06508833,195.45,195.39,8.06508833]
[1735671059681,8.06508833,195.44,195.37,44.63817233]
[1735671061686,8.06508833,195.45,195.38,8.06508833]
[1735671062608,8.06508833,195.44,195.37,44.63817233]
[1735671062817,8.06508833,195.42,195.35,6.0422]
[1735671062989,8.06508833,195.42,195.35,14.10728833]
[1735671063190,8.06508833,195.41,195.35,6.0422]
[1735671063387,8.06508833,195.39,195.35,6.0422]
[1735671063613,8.06508833,195.39,195.32,9.58958833]
[1735671063810,8.06508833,195.41,195.34,8.06508833]
[1735671064107,8.06508833,195.43,195.36,8.06508833]
[1735671064415,8.06508833,195.44,195.37,8.06508833]
[1735671065694,1.6102,195.48,195.39,8.06508833]
[1735671065695,8.06508833,195.46,195.39,8.06508833]
[1735671066392,8.06508833,195.45,195.39,8.06508833]
[1735671066807,8.06508833,195.44,195.38,6.3876]
[1735671067007,8.06508833,195.42,195.38,6.3876]
[1735671067186,8.06508833,195.42,195.35,8.06508833]
[1735671067391,8.06508833,195.43,195.36,8.06508833]
[1735671067986,8.06508833,195.41,195.35,23.776884]
[1735671068191,8.06508833,195.4,195.33,6.3876]
[1735671068390,8.06508833,195.4,195.33,14.45268833]
[1735671068609,8.06508833,195.41,195.34,8.06508833]
[1735671072009,8.06508833,195.39,195.33,30.164484]
[1735671072922,8.06508833,195.41,195.34,8.06508833]
[1735671074926,32.7899,195.47,195.34,8.06508833]
[1735671075126,8.06508833,195.41,195.34,8.06508833]
[1735671077125,8.06508833,195.4,195.34,8.06508833]
[1735671077330,8.06508833,195.4,195.33,38.22957233]
[1735671078004,8.06508833,195.39,195.33,6.3876]
[1735671078220,32.7899,195.47,195.33,6.3876]
[1735671078221,8.06508833,195.37,195.33,6.3876]
[1735671078426,8.06508833,195.36,195.33,6.3876]
[1735671078616,8.06508833,195.37,195.33,6.3876]
[1735671078821,8.06508833,195.38,195.33,6.3876]
[1735671080115,8.06508833,195.37,195.33,6.3876]
[1735671080329,8.06508833,195.37,195.32,1.5245]
[1735671080531,8.06508833,195.36,195.32,1.5245]
[1735671081529,8.06508833,195.37,195.32,1.5245]
[1735671083048,8.06508833,195.36,195.32,1.5245]
[1735671083961,8.06508833,195.34,195.29,6.3432]
[1735671084147,32.26035332,195.4,195.29,6.3432]
[1735671084148,8.06508833,195.32,195.29,6.3432]
[1735671084367,8.06508833,195.3,195.27,1.5921]
[1735671084663,8.06508833,195.3,195.25,6.3432]
[1735671086541,8.06508833,195.29,195.25,6.3432]
[1735671087157,8.06508833,195.26,195.22,1.5921]
[1735671087340,8.06508833,195.25,195.2,6.3447]
[1735671087657,8.06508833,195.26,195.2,6.3447]
[1735671087869,8.06508833,195.26,195.2,14.40978833]
[1735671090861,8.06508833,195.27,195.21,8.06508833]
[1735671091173,8.06508833,195.28,195.21,8.06508833]
[1735671091539,8.06508833,195.27,195.21,8.06508833]
[1735671091865,20.0,195.32,195.23,8.06508833]
[1735671092084,8.06508833,195.28,195.21,31.84197233]
[1735671092273,8.06508833,195.27,195.21,31.84197233]
[1735671093944,8.06508833,195.27,195.21,23.776884]
[1735671098851,8.06508833,195.32,195.26,23.776884]
[1735671099026,1.5007,195.39,195.26,23.776884]
[1735671099027,8.06508833,195.34,195.28,23.776884]
[1735671100954,8.06508833,195.35,195.28,31.84197233]
[1735671101460,8.06508833,195.36,195.29,8.06508833]
[1735671101955,8.06508833,195.36,195.3,23.776884]
[1735671103063,8.06508833,195.36,195.29,8.06508833]
[1735671103064,8.06508833,195.35,195.28,20.86678833]
[1735671103242,8.06508833,195.34,195.27,14.40978833]
[1735671103573,8.06508833,195.34,195.28,23.776884]
[1735671104028,8.06508833,195.35,195.28,31.84197233]
[1735671104233,8.06508833,195.37,195.3,8.06508833]
[1735671104668,8.06508833,195.38,195.31,8.06508833]
[1735671104961,8.06508833,195.37,195.3,8.06508833]
[1735671106466,8.06508833,195.36,195.3,23.776884]
[1735671110444,8.06508833,195.32,195.27,19.147]
[1735671110650,8.06508833,195.3,195.27,6.3447]
[1735671111044,8.06508833,195.31,195.27,6.3447]
[1735671114060,8.06508833,195.29,195.27,6.3447]
[1735671114262,8.06508833,195.3,195.27,6.3447]
[1735671114771,8.06508833,195.31,195.27,6.3447]
[1735671114972,8.06508833,195.32,195.27,6.3447]
[1735671115382,8.06508833,195.34,195.28,23.776884]
[1735671116462,8.06508833,195.34,195.28,36.578984]
[1735671116778,11.22564761,195.44,195.3,23.776884]
[1735671117084,8.06508833,195.37,195.3,8.06508833]
[1735671117680,8.06508833,195.38,195.32,8.06508833]
[1735671118185,8.06508833,195.38,195.31,8.06508833]
[1735671121769,8.06508833,195.37,195.3,8.06508833]
[1735671122077,8.0972,195.44,195.27,6.3447]
[1735671122078,8.06508833,195.31,195.27,6.3447]
[1735671122245,8.06508833,195.29,195.25,1.5875]
[1735671122646,8.06508833,195.3,195.25,1.5875]
[1735671122866,8.06508833,195.29,195.25,1.5875]
[1735671123371,8.06508833,195.3,195.25,1.5875]
[1735671125888,20.0,195.35,195.26,8.06508833]
[1735671126055,8.06508833,195.33,195.26,8.06508833]
[1735671126248,8.06508833,195.31,195.25,1.5875]
[1735671128264,8.06508833,195.32,195.25,1.5875]
[1735671128884,8.06508833,195.3,195.25,1.5875]
[1735671129074,8.06508833,195.31,195.25,1.5875]
[1735671133562,8.06508833,195.29,195.22,14.56218833]
[1735671133770,8.06508833,195.28,195.22,6.4971]
[1735671134082,8.06508833,195.27,195.22,6.4971]
[1735671134276,8.06508833,195.26,195.22,6.4971]
[1735671134475,8.06508833,195.27,195.22,6.4971]
[1735671135375,8.06508833,195.26,195.22,6.4971]
[1735671137353,8.06508833,195.26,195.2,1.5393]
[1735671137560,8.06508833,195.24,195.17,14.12958833]
[1735671137760,8.06508833,195.24,195.18,23.776884]
[1735671137959,8.06508833,195.24,195.18,31.84197233]
[1735671138173,33.86295332,195.3,195.18,31.84197233]
[1735671138174,8.06508833,195.25,195.18,31.84197233]
[1735671138381,8.06508833,195.25,195.19,8.06508833]
[1735671141463,8.06508833,195.25,195.18,31.84197233]
[1735671141694,8.06508833,195.25,195.18,8.06508833]
[1735671142385,8.06508833,195.24,195.17,26.93858833]
[1735671144183,46.66405332,195.3,195.17,6.0645]
[1735671144184,8.06508833,195.22,195.17,6.0645]
[1735671144764,8.06508833,195.18,195.15,1.5393]
[1735671145066,8.06508833,195.16,195.11,1.5393]
[1735671145295,8.06508833,195.15,195.11,1.5393]
[1735671145567,8.06508833,195.15,195.09,8.06508833]
[1735671145775,8.06508833,195.15,195.08,34.80027854]
[1735671146171,8.06508833,195.15,195.08,21.98507854]
[1735671146369,8.06508833,195.12,195.08,7.85549021]
[1735671146898,8.06508833,195.11,195.04,8.06508833]
[1735671148082,8.06508833,195.12,195.05,8.06508833]
[1735671148385,8.06508833,195.11,195.04,31.84197233]
[1735671148605,8.06508833,195.09,195.03,7.6038]
[1735671148803,8.06508833,195.08,195.03,6.0645]
[1735671148973,8.06508833,195.08,195.01,8.06508833]
[1735671149596,8.06508833,195.07,195.0,8.06508833]
[1735671149981,8.06508833,195.06,194.99,15.85348833]
[1735671150381,8.06508833,195.03,194.96,12.823]
[1735671150581,8.06508833,195.02,194.96,12.823]
[1735671150906,8.06508833,195.0,194.94,6.1881]
[1735671151074,8.06508833,194.99,194.94,6.1881]
[1735671152775,8.06508833,194.99,194.92,20.0]
[1735671152978,8.06508833,195.0,194.93,8.06508833]
[1735671153268,8.06508833,195.03,194.96,8.06508833]
[1735671153467,8.06508833,195.04,194.98,8.06508833]
[1735671153674,8.06508833,195.05,194.98,8.06508833]
[1735671153873,8.06508833,195.04,194.98,8.06508833]
[1735671154071,8.06508833,195.04,194.97,8.06508833]
[1735671154293,8.06508833,195.04,194.97,31.84197233]
[1735671154605,8.06508833,195.03,194.98,23.776884]
[1735671154972,8.06508833,195.03,194.96,8.06508833]
[1735671156076,8.06508833,195.04,194.97,8.06508833]
[1735671156271,12.65479666,195.04,194.97,12.65479666]
[1735671156472,12.65479666,195.03,194.96,12.65479666]
[1735671156889,12.65479666,195.03,194.95,20.0]
[1735671156890,12.65479666,195.02,194.95,12.65479666]
[1735671157698,20.0,195.07,194.95,12.65479666]
[1735671157872,12.65479666,195.02,194.95,12.65479666]
[1735671158395,12.65479666,195.03,194.97,12.65479666]
[1735671158775,12.65479666,195.04,194.97,12.65479666]
[1735671158974,12.65479666,195.05,194.98,12.65479666]
[1735671159372,12.65479666,195.04,194.97,12.65479666]
[1735671159675,12.65479666,195.03,194.96,12.65479666]
[1735671159904,12.65479666,195.04,194.97,12.65479666]
[1735671162971,12.65479666,195.04,194.97,19.18029666]
[1735671166082,12.65479666,195.02,194.97,6.5255]
[1735671166394,12.65479666,195.03,194.97,6.5255]
[1735671169495,12.65479666,195.03,194.97,6.315498]
[1735671169987,12.65479666,195.03,194.96,12.65479666]
[1735671170190,12.65479666,195.01,194.94,25.47919666]
[1735671170701,18.8588,195.12,194.99,12.65479666]
[1735671170994,12.65479666,195.07,195.0,12.65479666]
[1735671171496,12.65479666,195.06,194.99,12.65479666]
[1735671172195,12.65479666,195.06,194.98,12.65479666]
[1735671172401,12.65479666,195.06,194.99,23.776884]
[1735671173384,12.65479666,195.06,194.99,36.43168066]
[1735671173597,12.65479666,195.06,194.99,23.776884]
[1735671173798,12.65479666,195.06,194.99,36.43168066]
[1735671174499,12.65479666,195.07,195.0,12.65479666]
[1735671178226,12.65479666,195.07,194.99,23.776884]
[1735671178378,8.09680853,195.07,195.0,8.09680853]
[1735671180503,1.5169,195.14,195.01,31.87369253]
[1735671180704,8.09680853,195.08,195.02,8.09680853]
[1735671181292,8.09680853,195.08,195.01,31.87369253]
[1735671181492,8.09680853,195.07,195.01,23.776884]
[1735671182080,8.09680853,195.07,195.0,20.91700853]
[1735671182081,8.09680853,195.07,195.0,8.09680853]
[1735671184198,8.09680853,195.07,194.99,31.87369253]
[1735671184598,8.09680853,195.07,194.99,23.776884]
[1735671184799,8.09680853,195.07,194.99,31.87369253]
[1735671185605,8.09680853,195.06,194.99,31.87369253]
[1735671185799,8.09680853,195.06,194.98,28.0385]
[1735671185800,8.09680853,195.04,194.98,28.0385]
[1735671186694,8.09680853,195.03,194.98,28.0385]
[1735671186894,12.8145,195.09,194.94,12.8244]
[1735671186895,8.09680853,195.01,194.95,8.09680853]
[1735671187388,8.09680853,195.01,194.94,12.8244]
[1735671187389,8.09680853,195.01,194.94,31.87369253]
[1735671187595,8.09680853,195.0,194.94,23.776884]
[1735671188001,8.09680853,195.0,194.93,15.86400853]
[1735671188304,8.09680853,194.99,194.93,7.7672]
[1735671190807,8.09680853,194.99,194.93,15.86400853]
[1735671191599,8.09680853,195.0,194.93,15.86400853]
[1735671192017,8.09680853,194.99,194.93,6.2542]
[1735671192200,8.09680853,194.98,194.91,8.09680853]
[1735671193010,8.09680853,194.93,194.85,12.83]
[1735671193216,8.09680853,194.93,194.86,8.09680853]
[1735671193418,1.6495,194.98,194.85,12.83]
[1735671193713,8.09680853,194.92,194.84,31.87369253]
[1735671193910,8.09680853,194.92,194.87,20.0]
[1735671194208,8.09680853,194.93,194.87,20.0]
[1735671195917,8.09680853,194.92,194.87,20.0]
[1735671196209,8.09680853,194.93,194.87,20.0]
[1735671198113,8.09680853,194.95,194.88,8.09680853]
[1735671199619,1.6495,194.98,194.87,20.0]
[1735671199620,1.6495,194.98,194.9,8.09680853]
[1735671199810,8.09680853,194.97,194.9,8.09680853]
[1735671199992,8.09680853,194.96,194.89,8.09680853]
[1735671201319,8.09680853,194.92,194.85,8.09680853]
[1735671202634,8.09680853,194.91,194.84,20.92720853]
[1735671202925,8.09680853,194.91,194.82,8.0401]
[1735671203111,8.09680853,194.9,194.82,8.0401]
[1735671203302,8.09680853,194.9,194.83,8.09680853]
[1735671203826,8.09680853,194.9,194.82,8.0401]
[1735671203998,8.09680853,194.9,194.83,8.09680853]